fUSD/lending_fUSD_20240526
["ID","MTS","AMOUNT","RATE_DAILY","PERIOD"]
[327980409,1716733841779,-1229.23,0.00028888,4]
[327980410,1716733841789,-500.0,0.00028888,4]
[327980411,1716733841799,-3837.693193,0.00028969,2]
[327980412,1716733841809,-1250.0,0.00029,2]
[327980413,1716733841823,-1483.6790455,0.00029,2]
[327980414,1716733841833,-192.66109184,0.00029006,2]
[327980415,1716733841843,-500.0,0.00029033,4]
[327980416,1716733841852,-500.0,0.00029033,4]
[327980417,1716733841863,-500.0,0.00029041,4]
[327980418,1716733841872,-500.0,0.00029041,4]
[327980419,1716733841882,-670.73,0.00029041,4]
[327980420,1716733841900,-500.0,0.00029041,4]
[327980421,1716733841913,-906.42,0.00029089,4]
[327980422,1716733841926,-4296.979289,0.00029106,2]
[327980423,1716733841936,-3726.608851,0.00029106,2]
[327980424,1716733841945,-1882.240669,0.00029106,2]
[327980425,1716733841955,-6469.425356,0.00029106,2]
[327980426,1716733841964,-14906.435404,0.00029106,2]
[327980427,1716733841974,-691.662775,0.00029106,2]
[327980428,1716733841984,-500.0,0.00029146,4]
[327980429,1716733841994,-712.89,0.00029161,4]
[327980430,1716733842004,-450.0,0.00029162,5]
[327980431,1716733842014,-500.0,0.00029162,4]
[327980432,1716733842025,-861.34,0.00029162,4]
[327980433,1716733842035,-500.0,0.00029162,4]
[327980434,1716733842046,-631.86,0.00029162,4]
[327980435,1716733842056,-1229.23,0.00029162,4]
[327980436,1716733842067,-500.0,0.00029162,4]
[327980437,1716733842077,-528.54925605,0.00029169,2]
[327980438,1716733842087,-2100.0,0.00029242,2]
[327980439,1716733842097,-1000.0,0.0002927,2]
[327980440,1716733842107,-500.0,0.00029307,4]
[327980441,1716733842116,-500.0,0.00029307,4]
[327980442,1716733842126,-500.0,0.00029315,4]
[327980443,1716733842136,-500.0,0.00029315,4]
[327980444,1716733842145,-670.73,0.00029315,4]
[327980445,1716733842155,-500.0,0.00029315,4]
[327980446,1716733842167,-906.42,0.00029363,4]
[327980447,1716733842177,-500.0,0.0002942,4]
[327980448,1716733842187,-712.89,0.00029435,4]
[327980449,1716733842198,-500.0,0.00029436,4]
[327980450,1716733842208,-861.34,0.00029436,4]
[327980451,1716733842218,-500.0,0.00029436,4]
[327980452,1716733842229,-631.86,0.00029436,4]
[327980453,1716733842239,-1229.23,0.00029436,4]
[327980454,1716733842249,-500.0,0.00029436,4]
[327980455,1716733842259,-240.0,0.00029503,2]
[327980456,1716733842268,-225.19816696,0.00029581,4]
[327980457,1716733842278,-500.0,0.00029581,4]
[327980458,1716733842288,-163.49476447,0.00029588,2]
[327980459,1716733842298,-500.0,0.00029589,4]
[327980460,1716733842308,-500.0,0.00029589,4]
[327980461,1716733842317,-670.73,0.00029589,4]
[327980462,1716733842327,-500.0,0.00029589,4]
[327980463,1716733842336,-906.42,0.00029637,4]
[327980464,1716733842346,-2005.42016305,0.00029669,2]
[327980465,1716733842356,-500.0,0.00029694,4]
[327980466,1716733842367,-712.89,0.00029709,4]
[327980467,1716733842377,-500.0,0.0002971,4]
[327980468,1716733842387,-861.34,0.0002971,4]
[327980469,1716733842397,-500.0,0.0002971,4]
[327980470,1716733842406,-631.86,0.0002971,4]
[327980471,1716733842418,-1229.23,0.0002971,4]
[327980472,1716733842428,-500.0,0.0002971,4]
[327980473,1716733842437,-500.0,0.00029855,4]
[327980474,1716733842446,-623.21335124,0.00029863,4]
[327980475,1716733842456,-453.10242594,0.00029863,4]
[327980476,1716733842466,-670.73,0.00029863,4]
[327980477,1716733842476,-169.05184059,0.00029863,4]
[327980478,1716733842486,-1787.83630347,0.00029888,2]
[327980479,1716733842506,-2049.85688953,0.00029888,2]
[327980480,1716733842516,-997.46,0.000299,2]
[327980481,1716733842531,-906.42,0.00029911,4]
[327980482,1716733842542,-500.0,0.00029968,4]
[327980483,1716733842552,-712.89,0.00029983,4]
[327980484,1716733842562,-500.0,0.00029984,4]
[327980485,1716733842572,-861.34,0.00029984,4]
[327980486,1716733842582,-500.0,0.00029984,4]
[327980487,1716733842592,-631.86,0.00029984,4]
[327980488,1716733842604,-1229.23,0.00029984,4]
[327980489,1716733842614,-500.0,0.00029984,4]
[327980490,1716733842623,-500.0,0.00029997,2]
[327980491,1716733842633,-500.0,0.00029997,2]
[327980492,1716733842643,-500.0,0.00029997,2]
[327980493,1716733842653,-500.0,0.00029997,2]
[327980494,1716733842663,-500.0,0.00029997,2]
[327980495,1716733842675,-500.0,0.00029997,2]
[327980496,1716733842685,-155.0,0.0003,4]
[327980497,1716733842694,-19417.56126702,0.0003,4]
[327980498,1716733842704,-2345.12481961,0.0003,4]
[327980499,1716733842715,-23844.69262994,0.0003,4]
[327980500,1716733842725,-8133.7390635,0.0003,2]
[327980501,1716733842735,-500.0,0.0003,2]
[327980502,1716733842745,-500.0,0.0003,2]
[327980503,1716733842755,-500.0,0.0003,2]
[327980504,1716733842765,-500.0,0.0003,2]
[327980505,1716733842775,-500.0,0.0003,2]
[327980506,1716733842785,-30000.0,0.0003,5]
[327980507,1716733842795,-500.0,0.00030129,4]
[327980509,1716733842805,-500.0,0.00030129,2]
[327980511,1716733842816,-6241.7602304,0.00030134,4]
[327980513,1716733842829,-1380.30322781,0.00030135,4]
[327980515,1716733842838,-9664.85827671,0.00030135,4]
[327980517,1716733842848,-5000.0,0.00030135,2]
[327980519,1716733842859,-670.73,0.00030136,4]
[327980521,1716733842868,-906.42,0.00030185,4]
[327980523,1716733842878,-1058.0,0.00030232,2]
[327980525,1716733842888,-500.0,0.00030242,4]
[327980527,1716733842899,-233.79,0.00030247,2]
[327980529,1716733842910,-712.89,0.00030257,4]
[327980531,1716733842922,-500.0,0.00030258,4]
[327980533,1716733842931,-640.43839926,0.00030258,4]
[327980535,1716733842944,-220.90160074,0.00030258,4]
[327980537,1716733842955,-500.0,0.00030258,4]
[327980538,1716733842964,-382.49839926,0.00030258,4]
[327980541,1716733842977,-249.36160074,0.00030258,4]
[327980543,1716733842987,-1229.23,0.00030258,4]
[327980545,1716733842998,-392.54118321,0.00030258,4]
[327980547,1716733843010,-107.45881679,0.00030258,4]
[327980549,1716733843020,-354.0,0.000304,2]
[327980551,1716733843030,-1000.0,0.000304,2]
[327980553,1716733843040,-224.0,0.000304,2]
[327980555,1716733843051,-500.0,0.00030403,4]
[327980557,1716733843062,-500.0,0.00030403,2]
[327980559,1716733843072,-1552.82804364,0.00030408,4]
[327980562,1716733843083,-155.0,0.00030409,4]
[327980564,1716733843092,-1538.73872114,0.00030409,4]
[327980566,1716733843102,-670.73,0.0003041,4]
[327980568,1716733843112,-906.42,0.00030459,4]
[327980570,1716733843122,-151.0,0.00030513,2]
[327980572,1716733843132,-256.19108857,0.00030516,4]
[327980574,1716733843141,-712.89,0.00030531,4]
[327980576,1716733843152,-500.0,0.00030532,4]
[327980578,1716733843162,-861.34,0.00030532,4]
[327980580,1716733843174,-53.50332984,0.00030532,4]
[327980634,1716733843971,-446.49667016,0.00030532,4]
[327980635,1716733843982,-46.03876453,0.00030532,4]
[327980637,1716733843996,-585.82123547,0.00030532,4]
[327980638,1716733844006,-1229.23,0.00030532,4]
[327980639,1716733844016,-500.0,0.00030532,4]
[327980640,1716733844026,-192.66109183,0.00030604,2]
[327980641,1716733844036,-454.06459991,0.00030676,4]
[327980642,1716733844047,-670.73,0.00030684,4]
[327980643,1716733844058,-906.42,0.00030733,4]
[327980644,1716733844069,-712.89,0.00030805,4]
[327980645,1716733844079,-500.0,0.00030806,4]
[327980646,1716733844089,-861.34,0.00030806,4]
[327980647,1716733844100,-500.0,0.00030806,4]
[327980648,1716733844110,-631.86,0.00030806,4]
[327980649,1716733844121,-146.66472602,0.00030806,4]
[327980650,1716733844571,-1082.56527398,0.00030806,4]
[327980651,1716733844582,-500.0,0.00030806,4]
[327980652,1716733844593,-2330.22937442,0.00030807,2]
[327980653,1716733844606,-1507.46381858,0.00030807,2]
[327980654,1716733844617,-500.0,0.0003095,2]
[327980655,1716733844627,-670.73,0.00030958,4]
[327980656,1716733844637,-1300.0,0.00031,2]
[327980657,1716733844648,-155.0,0.00031,4]
[327980658,1716733844658,-906.42,0.00031007,4]
[327980659,1716733844670,-302.0,0.00031025,4]
[327980660,1716733844679,-712.89,0.00031079,4]
[327980661,1716733844689,-500.59991551,0.0003108,4]
[327980662,1716733844699,-861.34,0.0003108,4]
[327980663,1716733844710,-500.0,0.0003108,4]
[327980664,1716733844720,-243.53626586,0.0003108,4]
[327980665,1716733844732,-388.32373414,0.0003108,4]
[327980666,1716733844743,-1229.23,0.0003108,4]
[327980667,1716733844752,-500.0,0.0003108,4]
[327980668,1716733844763,-419.0067378,0.00031224,2]
[327980669,1716733844776,-80.9932622,0.00031224,2]
[327980670,1716733844786,-2938.37197828,0.00031231,4]
[327980671,1716733844796,-5513.13702848,0.00031231,4]
[327980672,1716733844806,-670.73,0.00031232,4]
[327980673,1716733844817,-906.42,0.00031281,4]
[327980674,1716733844830,-861.34,0.00031353,4]
[327980675,1716733844840,-500.0,0.00031353,4]
[327980676,1716733844851,-631.86,0.00031353,4]
[327980677,1716733844862,-1229.23,0.00031353,4]
[327980678,1716733844873,-500.0,0.00031353,4]
[327980679,1716733844884,-712.89,0.00031353,4]
[327980682,1716733844896,-2500.0,0.000314,12]
[327980683,1716733844906,-997.46,0.0003142,2]
[327980685,1716733844916,-500.0,0.00031498,2]
[327980688,1716733844929,-670.73,0.00031506,4]
[327980690,1716733844940,-160.61,0.00031546,2]
[327980692,1716733844951,-604.0,0.00031547,7]
[327980694,1716733844963,-906.42,0.00031555,4]
[327980696,1716733844974,-861.34,0.00031627,4]
[327980698,1716733844985,-500.0,0.00031627,4]
[327980700,1716733844996,-631.86,0.00031627,4]
[327980702,1716733845006,-1229.23,0.00031627,4]
[327980704,1716733845017,-500.0,0.00031627,4]
[327980706,1716733845028,-712.89,0.00031627,4]
[327980708,1716733845038,-3837.693193,0.00031725,2]
[327980710,1716733845048,-3621.11176206,0.00031733,2]
[327980712,1716733845060,-500.0,0.00031742,2]
[327980714,1716733845071,-500.0,0.00031742,2]
[327980716,1716733845081,-7485.57,0.00031742,5]
[327980718,1716733845092,-500.0,0.00031772,2]
[327980720,1716733845103,-670.73,0.0003178,4]
[327980722,1716733845113,-7500.0,0.000318,2]
[327980724,1716733845123,-906.42,0.00031829,4]
[327980725,1716733845133,-1500.0,0.000319,12]
[327980726,1716733845144,-861.34,0.00031901,4]
[327980727,1716733845154,-500.0,0.00031901,4]
[327980728,1716733845165,-631.86,0.00031901,4]
[327980729,1716733845178,-1229.23,0.00031901,4]
[327980730,1716733845189,-500.0,0.00031901,4]
[327980731,1716733845200,-712.89,0.00031901,4]
[327980732,1716733845211,-5800.0,0.00031906,2]
[327980733,1716733845220,-5800.0,0.00031915,2]
[327980734,1716733845230,-5800.0,0.00031923,2]
[327980735,1716733845240,-5800.0,0.00031932,2]
[327980736,1716733845250,-5800.0,0.0003194,2]
[327980737,1716733845261,-5800.0,0.00031949,2]
[327980738,1716733845272,-333.67844637,0.00032,4]
[327980739,1716733845282,-1018.0,0.00032,7]
[327980740,1716733845293,-500.0,0.00032046,2]
[327980741,1716733845303,-670.73,0.00032054,4]
[327980742,1716733845315,-5000.0,0.00032075,2]
[327980743,1716733845327,-906.42,0.00032103,4]
[327980744,1716733845337,-5000.0,0.00032108,2]
[327980745,1716733845348,-861.34,0.00032175,4]
[327980746,1716733845359,-500.0,0.00032175,4]
[327980747,1716733845370,-631.86,0.00032175,4]
[327980748,1716733845381,-1229.23,0.00032175,4]
[327980749,1716733845392,-500.0,0.00032175,4]
[327980750,1716733845402,-712.89,0.00032175,4]
[327980751,1716733845413,-192.66109183,0.00032202,2]
[327980752,1716733845426,-152.59,0.00032228,2]
[327980753,1716733845436,-25000.0,0.00032238,2]
[327980754,1716733845446,-2503.02,0.00032293,2]
[327980755,1716733845456,-670.73,0.00032328,4]
[327980756,1716733845466,-1208.0,0.00032345,30]
[327980757,1716733845478,-2501.59,0.00032375,2]
[327980758,1716733845488,-906.42,0.00032377,4]
[327980759,1716733845498,-2503.02,0.00032392,2]
[327980760,1716733845508,-1500.0,0.000324,12]
[327980761,1716733845518,-5000.0,0.00032442,2]
[327980762,1716733845528,-2503.64,0.00032443,2]
[327980763,1716733845538,-861.34,0.00032449,4]
[327980764,1716733845547,-500.0,0.00032449,4]
[327980765,1716733845557,-631.86,0.00032449,4]
[327980766,1716733845567,-1229.23,0.00032449,4]
[327980767,1716733845576,-500.0,0.00032449,4]
[327980768,1716733845587,-712.89,0.00032449,4]
[327980769,1716733845597,-240.0,0.00032453,2]
[327980770,1716733845608,-5000.0,0.00032497,2]
[327980771,1716733845618,-233.79,0.00032511,2]
[327980772,1716733845628,-670.73,0.00032602,4]
[327980773,1716733845637,-12515.12,0.00032637,2]
[327980774,1716733845647,-3837.693193,0.00032644,2]
[327980775,1716733845657,-2506.18,0.00032645,2]
[327980776,1716733845668,-906.42,0.00032651,4]
[327980777,1716733845680,-2502.45,0.00032662,2]
[327980778,1716733845689,-2502.45,0.00032667,2]
[327980779,1716733845699,-5000.0,0.00032671,2]
[327980780,1716733845709,-2506.18,0.00032718,2]
[327980781,1716733845719,-861.34,0.00032723,4]
[327980782,1716733845730,-500.0,0.00032723,4]
[327980783,1716733845739,-631.86,0.00032723,4]
[327980784,1716733845748,-1229.23,0.00032723,4]
[327980785,1716733845758,-500.0,0.00032723,4]
[327980786,1716733845768,-712.89,0.00032723,4]
[327980787,1716733845778,-12515.12,0.00032774,2]
[327980788,1716733845787,-2503.64,0.00032783,2]
[327980789,1716733845798,-9357.17787557,0.00032826,2]
[327980790,1716733845808,-9357.17787555,0.00032826,2]
[327980791,1716733845818,-2511.04,0.00032839,2]
[327980792,1716733845833,-800.0,0.00032849,2]
[327980793,1716733845843,-670.73,0.00032876,4]
[327980794,1716733845852,-18269.76341271,0.00032877,2]
[327980875,1716735034213,-489.37546988,0.00012786,2]
[327980876,1716735034229,-241.02044782,0.00012786,2]
[327980877,1716735034239,-155.0,0.00012787,2]
[327980878,1716735034248,-624.21897666,0.00012787,2]
[327980879,1716735034258,-1351.14944619,0.00012787,2]
[327980880,1716735034267,-155.0,0.00012788,2]
[327980881,1716735034277,-155.0,0.00012789,2]
[327980882,1716735034286,-155.0,0.00012789,2]
[327980883,1716735034295,-821.60414684,0.00012789,2]
[327980884,1716735034404,-1993.6770772,0.00012789,2]
[327980885,1716735034414,-209.34589343,0.00012799,2]
[327980886,1716735034424,-2263.8495,0.000128,2]
[327980887,1716735034434,-2320.95,0.00012881,2]
[327980888,1716735034445,-961.54978913,0.000129,2]
[327980889,1716735034455,-597.97932772,0.000129,2]
[327980890,1716735034464,-6913.5928,0.000129,2]
[327980891,1716735034475,-370.8562,0.000129,2]
[327980892,1716735034484,-322.55646459,0.000129,2]
[327980893,1716735034493,-502.558885,0.000129,2]
[327980894,1716735034502,-250.0,0.00012985,2]
[327980895,1716735034511,-3055.224914,0.00012986,2]
[327980896,1716735034521,-46671.01,0.0001299,2]
[327980897,1716735034530,-1725.29,0.0001299,2]
[327980898,1716735034539,-999.99,0.0001299,2]
[327980899,1716735034548,-722.82,0.0001299,2]
[327980900,1716735034558,-152.47,0.0001299,2]
[327980901,1716735034568,-152.47,0.0001299,2]
[327980902,1716735034577,-152.47,0.0001299,2]
[327980903,1716735034586,-152.47,0.0001299,2]
[327980905,1716735034595,-152.47,0.0001299,2]
[327980907,1716735034604,-152.47,0.0001299,2]
[327980909,1716735034613,-152.47,0.0001299,2]
[327980911,1716735034627,-152.47,0.0001299,2]
[327980913,1716735034636,-152.47,0.0001299,2]
[327980915,1716735034645,-152.47,0.0001299,2]
[327980917,1716735034655,-152.47,0.0001299,2]
[327980919,1716735034666,-172.3172339,0.0001299,2]
[327980920,1716735034675,-172.3172339,0.0001299,2]
[327980921,1716735034684,-305.08514526,0.00012998,2]
[327980922,1716735034694,-259.00448085,0.00012998,2]
[327980923,1716735034703,-226.51077942,0.00012998,2]
[327980924,1716735034713,-1214.89267019,0.00012998,2]
[327980925,1716735034726,-207.5485086,0.00012998,2]
[327980926,1716735034736,-361.22735375,0.00012998,2]
[327980927,1716735034745,-5276.18337802,0.00012998,2]
[327980928,1716735034754,-755.6187192,0.00012998,2]
[327980929,1716735034763,-1248.98663554,0.00012998,2]
[327980930,1716735034772,-321.15490403,0.00012998,2]
[327980931,1716735034781,-155.0,0.00012998,2]
[327980932,1716735034791,-270.72824781,0.00012998,2]
[327980933,1716735034801,-277.3658757,0.00012998,2]
[327980934,1716735034811,-645.66557881,0.00012998,2]
[327980935,1716735034820,-155.28365723,0.00012998,2]
[327980936,1716735034830,-1273.86928001,0.00012998,2]
[327980937,1716735034839,-156.77330223,0.00012998,2]
[327980938,1716735034849,-344.66778136,0.00012998,2]
[327980939,1716735034859,-1180.1693692,0.00012998,2]
[327980940,1716735034868,-155.0,0.00012998,2]
[327980941,1716735034878,-2220.0136269,0.00012998,2]
[327980942,1716735034888,-686.67265106,0.00012998,2]
[327980943,1716735034897,-2187.63741095,0.00012998,2]
[327980944,1716735034906,-150.99,0.00012998,2]
[327980945,1716735034917,-499.99,0.00012998,2]
[327980946,1716735034926,-9999.99,0.00012998,2]
[327980947,1716735034936,-444.93725227,0.00012999,2]
[327980948,1716735034945,-3721.66553585,0.00012999,2]
[327980949,1716735034955,-150.0,0.00012999,2]
[327980950,1716735034965,-179899.64923177,0.00013,2]
[327980951,1716735034992,-1178308.52322992,0.00013,2]
[327980953,1716735037718,-404.56,0.00010963,2]
[327980954,1716735037730,-155.0,0.00012785,2]
[327980955,1716735037742,-124.72187214,0.00012786,2]
[327980956,1716735037755,-4308.95929627,0.00012786,2]
[327980957,1716735037764,-2610.17790373,0.00013,2]
[327980958,1716735037912,-2016.51452738,0.00013,2]
[327980959,1716735037925,-2003.45832,0.00013,2]
[327980960,1716735037937,-3034.54702303,0.00013,2]
[327980961,1716735037948,-383427.04764203,0.00013,2]
[327980962,1716735037960,-264.56632745,0.00013,2]
[327980963,1716735037972,-21974.15964118,0.00013,2]
[327980964,1716735037984,-396.81103095,0.00013,2]
[327980970,1716735040846,-222.91068318,0.000129,2]
[327980971,1716735040856,-545.14105882,0.00013,2]
[327980972,1716735040868,-571.895,0.00013,2]
[327980973,1716735041019,-1900.0534346,0.00013,2]
[327980974,1716735041032,-477.77172731,0.00013,2]
[327980975,1716735041044,-440.30034986,0.00013,2]
[327981029,1716735042758,-3778.63411803,0.00013,2]
[327981032,1716735042771,-4309.85589679,0.00013,2]
[327981043,1716735043112,-1618.66234261,0.00013,2]
[327981050,1716735043924,-653.51515285,0.00013,2]
[327981052,1716735043937,-9936.9114004,0.00013,2]
[327981113,1716735046969,-425.26309975,0.00012999,2]
[327981114,1716735046980,-254.24550686,0.00012999,2]
[327981115,1716735046990,-87.47139339,0.00012999,2]
[327981116,1716735047002,-2727.80983065,0.00012999,2]
[327981117,1716735047012,-3607.76264682,0.00013,2]
[327981118,1716735047024,-711.93069116,0.00013,2]
[327981119,1716735047154,-572.05675015,0.00013,2]
[327981120,1716735047338,-11526.00920418,0.00013,2]
[327981121,1716735047355,-412.4201776,0.00013,2]
[327981122,1716735047368,-319.50316463,0.00013,2]
[327981434,1716735767674,155.1,8.95e-05,2]
[327981435,1716735864625,-155.0,9.697e-05,2]
[327981436,1716735864647,-1246.26126998,9.697e-05,2]
[327981437,1716735864675,-1229.07873002,9.698e-05,2]
[327981438,1716735900223,-394.52,9.696e-05,2]
[327981439,1716735900250,-500.0,9.696e-05,2]
[327981440,1716735900295,-1349.96,9.696e-05,2]
[327981441,1716735900361,-5599.73137365,9.696e-05,2]
[327981442,1716735900392,-1242.73876717,9.698e-05,2]
[327981443,1716735900423,-343.46372685,9.698e-05,2]
[327981444,1716735900466,-394.52,9.706e-05,2]
[327981445,1716735900492,-204.86126628,0.0001,2]
[327981446,1716735900517,-188.05,0.00010959,2]
[327981447,1716735900540,-156.7,0.00010959,2]
[327981448,1716735900564,-783.55,0.00010959,2]
[327981449,1716735900585,-18.99873372,0.00011118,2]
[327981450,1716735900612,-1130.41126628,0.00011118,2]
[327981451,1716735900648,-200.0,0.00011134,2]
[327981452,1716735900672,-1242.73876717,0.00011135,2]
[327981453,1716735900694,-41903.13707657,0.00011136,2]
[327981454,1716735900886,-1442.73876717,0.00011136,2]
[327981455,1716735900908,-4031.1,0.00011137,2]
[327981456,1716735900932,-500.0,0.00011152,2]
[327981457,1716735900954,-1746.68,0.00011174,2]
[327981458,1716735900976,-1349.96,0.00011185,2]
[327981459,1716735900999,-6205.66148797,0.00011188,2]
[327981536,1716736047954,374.79,9.333e-05,2]
[327981550,1716736177948,250.0,0.00011123,2]
[327981551,1716736187742,1913.89,0.00011113,2]
[327981552,1716736209479,1000.0,0.00011113,2]
[327981554,1716736226193,410.08212737,0.00011113,2]
[327981555,1716736234111,-1760.24,0.0001117,2]
[327981557,1716736234121,-150.0,0.00011177,2]
[327981558,1716736234130,-1789.09722972,0.00011186,2]
[327981559,1716736234140,-1204.13053235,0.00011187,2]
[327981560,1716736234152,-1152.60554314,0.00011187,2]
[327981561,1716736234164,-388.2709758,0.00011187,2]
[327981562,1716736234173,-150.0,0.00011187,2]
[327981563,1716736234183,-358.15828501,0.00011188,2]
[327981564,1716736234380,-3612.3288521,0.00011188,2]
[327981565,1716736234392,-1162.34172452,0.00011188,2]
[327981566,1716736234403,-12561.5096504,0.00011188,2]
[327981567,1716736234413,-860.59,0.00011199,2]
[327981568,1716736234424,-193.61,0.00011211,2]
[327981569,1716736234433,-200.0,0.00011215,2]
[327981570,1716736234443,-1401.81,0.00011215,2]
[327981571,1716736234452,-563.16,0.00011234,2]
[327981572,1716736234463,-250.0,0.00011246,2]
[327981573,1716736234472,-317.46,0.00011246,2]
[327981574,1716736234481,-2160.68,0.00011246,2]
[327981575,1716736234491,-2056.88,0.00011249,2]
[327981576,1716736234500,-499.99,0.00011249,2]
[327981577,1716736234509,-165.21,0.00011344,2]
[327981578,1716736234519,-155.69,0.00011399,2]
[327981579,1716736234529,-155.69,0.00011439,2]
[327981580,1716736234539,-155.69,0.00011478,2]
[327981581,1716736234548,-155.69,0.00011518,2]
[327981582,1716736234558,-604.81,0.00011521,2]
[327981583,1716736234567,-2630.34,0.00011521,2]
[327981584,1716736234577,-797.65,0.00011521,2]
[327981585,1716736234587,-155.69,0.00011557,2]
[327981586,1716736234599,-155.69,0.00011597,2]
[327981587,1716736234612,-374.79,0.00011597,2]
[327981588,1716736234621,-155.69,0.00011637,2]
[327981589,1716736234631,-155.69,0.00011676,2]
[327981590,1716736234643,-155.69,0.00011716,2]
[327981591,1716736234652,-155.69,0.00011755,2]
[327981592,1716736234662,-155.69,0.00011795,2]
[327981593,1716736234671,-155.69,0.00011835,2]
[327981594,1716736234682,-155.69,0.00011874,2]
[327981595,1716736234691,-155.69,0.00011914,2]
[327981596,1716736234701,-155.69,0.00011953,2]
[327981597,1716736234710,-155.69,0.00011993,2]
[327981598,1716736234721,-226.33,0.00012044,2]
[327981599,1716736234730,-4399.54,0.00012084,2]
[327981600,1716736234740,-210.0,0.00012305,2]
[327981601,1716736234750,-1000.0,0.00012502,2]
[327981602,1716736234759,-171.07,0.00012755,2]
[327981603,1716736234769,-7166.04257102,0.0001287,2]
[327981604,1716736234779,-3000.0,0.0001287,2]
[327981605,1716736234788,-877.30201866,0.0001289,2]
[327981606,1716736234798,-204.54162248,0.00012899,2]
[327981607,1716736234808,-2841.90097802,0.00012899,2]
[327981608,1716736234818,-28173.1479,0.000129,2]
[327981609,1716736234827,-2869.2683,0.000129,2]
[327981610,1716736234837,-176.31670544,0.000129,2]
[327981611,1716736234847,-1115.54471488,0.000129,2]
[327981612,1716736234857,-714.24576847,0.000129,2]
[327981613,1716736234867,-3521.49682695,0.000129,2]
[327981614,1716736234877,-325.08081854,0.000129,2]
[327981615,1716736234887,-1725.6304937,0.000129,2]
[327981616,1716736234896,-264.82133589,0.00012935,2]
[327981617,1716736234906,-410.10992495,0.00012988,2]
[327981618,1716736234915,-410.10992495,0.00012988,2]
[327981619,1716736234925,-410.10992495,0.00012989,2]
[327981620,1716736234935,-410.10992495,0.00012989,2]
[327981621,1716736234944,-410.10992495,0.0001299,2]
[327981622,1716736234953,-410.10992495,0.0001299,2]
[327981623,1716736234963,-410.10992495,0.0001299,2]
[327981624,1716736234973,-410.10992495,0.0001299,2]
[327981625,1716736234982,-410.10992495,0.0001299,2]
[327981626,1716736234991,-410.10992495,0.0001299,2]
[327981627,1716736235000,-410.10992495,0.0001299,2]
[327981628,1716736235009,-410.10992495,0.0001299,2]
[327981629,1716736235019,-410.10992495,0.0001299,2]
[327981630,1716736235029,-410.10992495,0.0001299,2]
[327981631,1716736235038,-410.10992495,0.0001299,2]
[327981632,1716736235048,-410.10992495,0.0001299,2]
[327981633,1716736235057,-410.10992495,0.0001299,2]
[327981634,1716736235066,-410.10992495,0.0001299,2]
[327981635,1716736235076,-410.10992495,0.0001299,2]
[327981636,1716736235085,-410.10992495,0.0001299,2]
[327981637,1716736235094,-410.10992495,0.0001299,2]
[327981638,1716736235103,-410.10992495,0.0001299,2]
[327981639,1716736235113,-410.10992495,0.0001299,2]
[327981640,1716736235122,-410.10992495,0.0001299,2]
[327981641,1716736235131,-410.10992495,0.0001299,2]
[327981642,1716736235140,-410.10992495,0.0001299,2]
[327981643,1716736235150,-410.10992495,0.0001299,2]
[327981644,1716736235160,-410.10992495,0.0001299,2]
[327981645,1716736235169,-410.10992495,0.0001299,2]
[327981646,1716736235179,-410.10992495,0.0001299,2]
[327981647,1716736235188,-410.10992495,0.0001299,2]
[327981648,1716736235198,-410.10992495,0.0001299,2]
[327981649,1716736235208,-410.10992495,0.0001299,2]
[327981650,1716736235219,-410.10992495,0.0001299,2]